bitfinex-derivatives/quotes_SOLF0:USTF0_20250613
["timestamp","ask_amount","ask_price","bid_price","bid_amount"]
[1749782228659,43.2,142.7,142.65,2.4037]
[1749782229056,51.15889267,142.7,142.65,2.4037]
[1749782229260,0.04588458,142.69,142.66,0.05033057]
[1749782229856,446.42,142.73,142.66,8.00271436]
[1749782230368,2.82828316,142.72,142.66,8.00271436]
[1749782230571,446.42,142.73,142.69,7.0031]
[1749782230863,7.95238379,142.71,142.7,0.04442207]
[1749782231062,10.77920809,142.71,142.63,2.2318]
[1749782231269,7.99672968,142.68,142.66,0.04738422]
[1749782231563,50.2045,142.67,142.66,0.04738422]
[1749782231764,45.97745086,142.67,142.66,0.04738422]
[1749782232070,43.2,142.67,142.66,0.04738422]
[1749782232258,45.9780236,142.67,142.66,0.04738422]
[1749782232462,45.97759807,142.67,142.66,0.04738422]
[1749782232660,52.98179244,142.67,142.66,8.422e-05]
[1749782232865,58.80962585,142.67,142.61,4.0]
[1749782233166,7.95238379,142.63,142.61,4.0]
[1749782233363,45.97688998,142.62,142.61,4.0]
[1749782233564,43.2,142.62,142.61,4.0]
[1749782233761,45.97581221,142.62,142.6,0.05280112]
[1749782233967,157.01238379,142.61,142.55,2.4042]
[1749782234468,149.06,142.61,142.55,2.4042]
[1749782234962,0.04564829,142.59,142.57,7.06274597]
[1749782235560,0.04564829,142.59,142.57,11.06274597]
[1749782236070,0.04564829,142.59,142.57,4.05354597]
[1749782236264,43.2,142.58,142.57,4.05354597]
[1749782236869,43.2,142.58,142.57,11.06284597]
[1749782237263,43.2,142.58,142.57,4.05354597]
[1749782238669,55.52770642,142.58,142.49,2.3173]
[1749782238867,19.33840642,142.55,142.51,7.0121]
[1749782239062,19.33840642,142.55,142.49,2.3173]
[1749782239063,43.22,142.54,142.49,2.3173]
[1749782239467,43.22,142.54,142.51,7.0119]
[1749782239775,43.26510769,142.54,142.51,0.05075907]
[1749782240163,43.22,142.59,142.52,12.32770642]
[1749782240362,43.22,142.59,142.52,14.60470642]
[1749782240574,2.78316178,142.58,142.52,18.60470642]
[1749782240766,43.22,142.59,142.57,7.0093]
[1749782240966,43.22,142.62,142.54,12.32770642]
[1749782241164,0.0489477,142.59,142.57,0.04606862]
[1749782241661,43.22,142.65,142.57,12.37377504]
[1749782241859,2.78429234,142.64,142.57,12.32770642]
[1749782242065,43.22,142.66,142.57,12.32770642]
[1749782242265,2.78388201,142.65,142.62,7.0065]
[1749782242464,2.78343368,142.64,142.57,12.32770642]
[1749782242664,0.04755465,142.62,142.59,0.0505925]
[1749782243168,0.04755465,142.62,142.61,7.0073]
[1749782243363,43.22,142.66,142.61,7.0073]
[1749782243664,50.2236,142.69,142.65,7.005]
[1749782243859,2.78474032,142.68,142.65,7.005]
[1749782244064,2.78443083,142.67,142.59,55.54770642]
[1749782244263,43.22,142.69,142.66,7.0046]
[1749782244470,2.78374477,142.68,142.66,0.05174293]
[1749782244669,43.26492466,142.69,142.66,0.05174293]
[1749782244967,43.26492466,142.69,142.68,7.0039]
[1749782245168,46.0488718,142.69,142.68,7.0039]
[1749782245369,0.04492466,142.69,142.68,7.0039]
[1749782245562,43.22,142.75,142.67,12.32770642]
[1749782245768,43.22,142.77,142.67,12.32770642]
[1749782245962,7.0005,142.75,142.67,12.32770642]
[1749782246170,149.02,142.76,142.72,7.0019]
[1749782246571,149.02,142.76,142.73,0.05239044]
[1749782247873,192.2,142.77,142.73,0.05239044]
[1749782248074,7.0001,142.76,142.73,0.05239044]
[1749782248777,192.2,142.77,142.73,0.05239044]
[1749782248977,43.22,142.77,142.73,0.05239044]
[1749782250376,43.22,142.77,142.76,7.0]
[1749782250577,192.16,142.8,142.73,0.05239044]
[1749782251277,43.2,142.8,142.73,0.05239044]
[1749782251477,192.14,142.8,142.73,0.05239044]
[1749782251778,7.0023,142.72,142.62,12.32770642]
[1749782251970,43.06,142.71,142.63,2.3074]
[1749782252172,55.38770642,142.71,142.63,2.3074]
[1749782252477,55.38770642,142.71,142.62,4.5228]
[1749782252478,12.32770642,142.69,142.62,4.5228]
[1749782252679,7.0049,142.66,142.64,0.05294321]
[1749782252871,50.0649,142.66,142.64,0.05294321]
[1749782253374,198.9849,142.66,142.64,0.05294321]
[1749782253875,191.98,142.66,142.64,0.05294321]
[1749782254579,198.9852,142.66,142.64,0.05294321]
[1749782255181,191.98,142.66,142.64,0.05294321]
[1749782255772,198.9849,142.66,142.64,0.05294321]
[1749782256980,191.98,142.66,142.64,0.05294321]
[1749782257579,19.33310642,142.65,142.64,0.01139477]
[1749782257883,22.12528149,142.65,142.64,0.01139477]
[1749782258183,22.12528149,142.65,142.64,4.01139477]
[1749782258184,25.15101304,142.65,142.64,4.01139477]
[1749782258373,27.94396569,142.65,142.64,4.01139477]
[1749782258575,15.6159434,142.65,142.64,4.01139477]
[1749782258774,27.94364982,142.65,142.64,4.01139477]
[1749782258985,27.94345037,142.65,142.64,4.01139477]
[1749782259276,25.15101304,142.65,142.64,4.01139477]
[1749782259982,7.0077,142.61,142.57,7.0089]
[1749782260184,43.08,142.6,142.56,2.2331]
[1749782260684,148.9,142.61,142.56,2.2331]
[1749782260883,0.04692274,142.6,142.59,7.0083]
[1749782261186,148.9,142.61,142.57,0.04714836]
[1749782261485,43.08,142.63,142.62,7.0068]
[1749782261984,43.08,142.63,142.62,11.0068]
[1749782262478,43.08,142.63,142.62,4.0]
[1749782262673,48.9226357,142.63,142.62,4.0]
[1749782263482,55.9290357,142.63,142.62,4.0]
[1749782263698,55.9290357,142.63,142.62,3.6489]
[1749782263888,62.31883724,142.63,142.62,3.6489]
[1749782264093,7.0068,142.62,142.61,0.05055808]
[1749782264389,25.17714212,142.62,142.61,0.05055808]
[1749782266481,25.17714212,142.62,142.61,4.05055808]
[1749782267296,25.19034212,142.62,142.5,2.3556]
[1749782267491,12.32770642,142.55,142.5,9.3681]
[1749782267687,198.9711,142.54,142.5,9.3681]
[1749782267889,191.96,142.54,142.5,2.3556]
[1749782268286,0.04515549,142.53,142.51,0.04946343]
[1749782269398,0.04515549,142.53,142.51,4.04946343]
[1749782269999,403.68,142.58,142.51,4.04946343]
[1749782270201,48.9478357,142.57,142.51,4.04946343]
[1749782270398,6.44298239,142.6,142.52,14.53020642]
[1749782270399,43.08,142.6,142.52,14.53020642]
[1749782270594,43.08,142.6,142.54,12.32770642]
[1749782271101,43.08,142.63,142.56,12.3757827]
[1749782271300,43.08,142.63,142.56,0.04807628]
[1749782271502,191.96,142.63,142.56,0.04807628]
[1749782271900,43.08,142.63,142.56,12.3757827]
[1749782272102,43.08,142.63,142.62,7.0068]
[1749782272301,6.44298239,142.7,142.61,0.05272795]
[1749782272493,43.1,142.68,142.6,12.32770642]
[1749782272697,191.98,142.68,142.65,7.0053]
[1749782273502,191.98,142.68,142.65,7.05497417]
[1749782273702,198.984,142.68,142.65,7.05497417]
[1749782275004,191.96,142.68,142.66,7.0047]
[1749782275298,43.1,142.68,142.65,0.04967417]
[1749782275503,191.94,142.68,142.65,0.04967417]
[1749782275702,191.94,142.68,142.65,7.05467417]
[1749782276296,191.94,142.68,142.65,0.04967417]
[1749782276494,12.32770642,142.67,142.65,0.04967417]
[1749782276904,7.0049,142.66,142.65,0.04967417]
[1749782278499,7.0049,142.66,142.65,0.00897417]
[1749782278705,12.32770642,142.67,142.57,2.3164]
[1749782278906,12.32770642,142.65,142.57,4.7104]
[1749782279106,43.08,142.64,142.57,4.7104]
[1749782279708,43.08,142.64,142.59,0.04662476]
[1749782279709,0.04476825,142.62,142.59,0.04662476]
[1749782280707,148.84476825,142.62,142.59,0.04662476]
[1749782280903,0.04476825,142.62,142.59,0.04662476]
[1749782281308,12.32770642,142.61,142.59,0.0112299]
[1749782281502,49.9678,142.6,142.59,0.0112299]
[1749782281703,49.9678,142.6,142.59,4.0112299]
[1749782283212,42.96,142.6,142.59,4.0112299]
[1749782283904,49.9678,142.6,142.59,4.0112299]
[1749782284605,0.04476825,142.62,142.59,4.0112299]
[1749782285002,0.04476825,142.62,142.6,7.0074]
[1749782285209,0.04476825,142.62,142.59,4.0112299]
[1749782285900,0.04476825,142.62,142.6,4.5747]
[1749782286214,0.04476825,142.62,142.61,7.0073]
[1749782287008,0.04476825,142.62,142.6,11.5823]
[1749782287314,0.04476825,142.62,142.6,4.5747]
[1749782287508,42.96,142.66,142.6,4.5747]
[1749782288309,12.32770642,142.65,142.6,2.1911]
[1749782288610,0.04030078,142.64,142.6,2.1911]
[1749782288911,0.04030078,142.64,142.63,7.0064]
[1749782289413,42.96,142.66,142.62,0.04827892]
[1749782290615,42.96,142.66,142.64,7.0054]
[1749782290916,42.96,142.66,142.62,0.04827892]
[1749782291111,7.0063,142.63,142.62,0.04827892]
[1749782291413,12.32770642,142.63,142.59,4.0]
[1749782291610,12.32770642,142.61,142.59,4.0]
[1749782291807,49.9678,142.6,142.59,4.0]
[1749782292108,49.9678,142.6,142.59,3.9164]
[1749782292614,55.81903013,142.6,142.59,3.9164]
[1749782293014,7.0083,142.59,142.58,0.05222547]
[1749782293212,19.33600642,142.59,142.58,0.05222547]
[1749782293410,25.18795457,142.59,142.58,0.05222547]
[1749782293604,19.33600642,142.59,142.58,0.05222547]
[1749782293809,25.18776066,142.59,142.58,0.05222547]
[1749782294013,19.33600642,142.59,142.58,0.05222547]
[1749782294214,25.19109864,142.59,142.58,0.05222547]
[1749782294813,25.19109864,142.59,142.58,4.05222547]
[1749782295919,19.33600642,142.59,142.58,4.05222547]
[1749782296117,5.83866882,142.59,142.58,4.05222547]
[1749782296315,42.96,142.6,142.58,4.05222547]
[1749782296715,42.96,142.6,142.59,7.0083]
[1749782297119,7.0083,142.59,142.58,4.05222547]
[1749782297317,12.85080531,142.59,142.58,4.05222547]
[1749782298019,12.27668975,142.59,142.49,6.8812]
[1749782298320,12.32770642,142.55,142.49,4.548]
[1749782298521,42.96,142.54,142.51,7.012]
[1749782298722,42.96,142.54,142.49,4.548]
[1749782298925,0.0447771,142.53,142.5,0.05034871]
[1749782299120,0.0447771,142.53,142.51,7.0119]
[1749782299323,0.0447771,142.53,142.5,0.05034871]
[1749782299625,42.96,142.57,142.5,0.05034871]
[1749782299818,42.96,142.57,142.54,7.0104]
[1749782300222,55.28770642,142.57,142.5,4.0]
[1749782300526,0.04414254,142.55,142.52,0.04477838]
[1749782301925,0.04414254,142.55,142.54,7.0108]
[1749782302726,42.96,142.57,142.52,0.04477838]
[1749782303020,49.9694,142.57,142.52,0.04477838]
[1749782303220,12.32770642,142.56,142.52,0.04477838]
[1749782303623,7.0106,142.55,142.52,7.05607838]
[1749782304824,19.33770642,142.56,142.53,7.0112]
[1749782305029,42.96,142.57,142.52,0.04477838]
[1749782305619,42.96,142.57,142.54,7.0105]
[1749782306230,42.96,142.57,142.55,7.0102]
[1749782306426,42.96,142.57,142.52,0.04477838]
[1749782307227,42.98,142.6,142.58,7.0083]
[1749782307531,42.98,142.63,142.58,0.0469098]
[1749782307823,42.98,142.66,142.59,4.6373]
[1749782308029,49.9852,142.66,142.63,7.006]
[1749782308233,55.30770642,142.66,142.61,0.04834696]
[1749782308529,42.98,142.66,142.61,0.04834696]
[1749782308730,49.9852,142.66,142.63,7.0063]
[1749782310420,7.0054,142.65,142.61,0.04834696]
[1749782310623,55.30770642,142.66,142.61,0.04834696]
[1749782310818,5.83160422,142.65,142.61,0.04834696]
[1749782311017,7.0067,142.63,142.61,0.04834696]
[1749782311224,42.96,142.62,142.61,0.04834696]
[1749782311827,42.96,142.62,142.61,4.04834696]
[1749782313633,42.96,142.62,142.61,11.05564696]
[1749782313821,42.96,142.62,142.61,4.04834696]
[1749782314225,42.96,142.62,142.61,11.05564696]
[1749782314432,42.96,142.62,142.61,4.04834696]
[1749782315228,42.8,142.65,142.61,4.04834696]
[1749782315532,42.8,142.65,142.62,7.0064]
[1749782315832,7.0061,142.64,142.61,11.05564696]
[1749782316131,7.0061,142.64,142.61,4.04834696]
[1749782316518,7.0068,142.62,142.61,4.04834696]
[1749782316732,18.17937406,142.62,142.46,42.8]
[1749782316933,12.32770642,142.58,142.51,6.8557]
[1749782317126,42.8,142.57,142.54,7.0105]
[1749782317325,42.8,142.57,142.51,6.8557]
[1749782317833,0.04944083,142.55,142.53,0.04466021]
[1749782318232,0.04944083,142.55,142.54,7.0108]
[1749782318932,0.04944083,142.55,142.54,11.0108]
[1749782319131,0.04944083,142.55,142.54,4.0]
[1749782320128,7.05974083,142.55,142.54,4.0]
[1749782320927,7.0108,142.54,142.53,0.04466021]
[1749782321133,25.17278015,142.54,142.53,0.04466021]
[1749782322631,7.013,142.5,142.47,4.4074]
[1749782322828,42.82,142.49,142.4,42.82]
[1749782323027,7.0146,142.47,142.43,7.0162]
[1749782323232,55.14770642,142.49,142.43,7.0162]
[1749782323426,55.14770642,142.49,142.42,4.4652]
[1749782323637,0.05050464,142.47,142.44,0.04711488]
[1749782323828,0.05050464,142.47,142.44,7.06251488]
[1749782324031,0.05050464,142.47,142.44,0.04711488]
[1749782324439,7.0148,142.46,142.44,0.04711488]
[1749782324636,55.14770642,142.45,142.26,17.24618804]
[1749782324829,12.32770642,142.35,142.27,2.407]
[1749782325031,42.82,142.34,142.27,2.407]
[1749782325234,403.86,142.39,142.27,2.407]
[1749782325437,12.32770642,142.34,142.27,2.407]
[1749782325637,55.14770642,142.34,142.27,2.407]
[1749782325838,0.05036192,142.32,142.29,0.0538532]
[1749782326135,42.82,142.34,142.29,0.0538532]
[1749782326335,42.82,142.37,142.29,0.0538532]
[1749782326530,42.82,142.37,142.28,12.32770642]
[1749782327132,0.04675115,142.34,142.31,0.05330599]
[1749782327331,42.82,142.37,142.31,0.05330599]
[1749782327535,6.45907465,142.46,142.31,42.87330599]
[1749782327733,62.16300642,142.45,142.4,7.0174]
[1749782328142,55.14770642,142.45,142.35,2.285]
[1749782328442,0.04493762,142.41,142.4,7.0177]
[1749782328640,55.21264404,142.41,142.39,0.04540457]
[1749782329241,55.21264404,142.41,142.32,2.3822]
[1749782329442,55.21264404,142.41,142.3,2.2153]
[1749782329443,12.32770642,142.35,142.29,2.2673]
[1749782329752,12.32770642,142.33,142.29,2.2673]
[1749782329937,24.65541284,142.3,142.07,17.24618804]
[1749782330140,0.04728864,142.2,142.17,0.05120976]
[1749782330451,0.04728864,142.2,142.17,7.08020976]
[1749782330637,0.04728864,142.2,142.17,0.05120976]
[1749782331647,12.37499506,142.2,142.17,0.05120976]
[1749782332244,12.32770642,142.18,142.17,0.05120976]
[1749782332443,42.86,142.18,142.17,4.05120976]
[1749782333550,42.86,142.18,142.17,11.08020976]
[1749782333856,42.86,142.18,142.17,4.05120976]
[1749782334256,55.18770642,142.18,142.17,4.05120976]
[1749782334644,55.18770642,142.18,142.12,7.0313]
[1749782334846,12.32770642,142.15,142.12,7.0313]
[1749782335049,42.88,142.14,142.08,6.7712]
[1749782335347,42.88,142.18,142.09,12.32770642]
[1749782335552,0.05094331,142.15,142.12,0.04698382]
[1749782335751,42.88,142.18,142.12,0.04698382]
[1749782335955,1.22431748,142.23,142.15,12.32770642]
[1749782336153,42.88,142.24,142.15,12.32770642]
[1749782336457,42.88,142.24,142.23,7.0261]
[1749782336864,42.88,142.24,142.22,0.05084174]
[1749782337059,42.92712771,142.24,142.22,0.04649046]
[1749782337264,12.32770642,142.23,142.15,4.0]
[1749782337458,12.32770642,142.2,142.15,11.0296]
[1749782337648,44.56,142.19,142.15,4.0]
[1749782337853,44.56,142.18,142.15,4.0]
[1749782338156,44.56,142.19,142.15,4.0]
[1749782338357,0.05295606,142.18,142.15,4.04893048]
[1749782338654,0.05295606,142.18,142.16,7.0291]
[1749782338860,0.05295606,142.18,142.15,4.04893048]
[1749782339758,0.05295606,142.18,142.17,7.029]
[1749782340550,0.05295606,142.18,142.15,4.04893048]
[1749782341759,0.05295606,142.18,142.17,7.029]
[1749782342663,0.05295606,142.18,142.16,7.0295]
[1749782342959,0.05295606,142.18,142.15,4.04893048]
[1749782343262,12.32770642,142.16,141.99,12.32770642]
[1749782343463,12.32770642,142.1,142.0,4.5748]
[1749782343762,12.32770642,142.08,142.0,4.5748]
[1749782343954,49.12,142.07,142.0,4.5748]
[1749782344154,12.32770642,142.12,142.01,12.32770642]
[1749782344362,0.04759223,142.08,142.05,0.05306059]
[1749782345152,0.04759223,142.08,142.05,4.05306059]
[1749782345562,0.04759223,142.08,142.06,7.0341]
[1749782345962,0.04759223,142.08,142.05,4.05306059]
[1749782346152,0.04759223,142.08,142.05,11.08766059]
[1749782346352,0.04759223,142.08,142.05,4.05306059]
[1749782346555,61.46770642,142.07,142.05,4.05306059]
[1749782346857,7.0345,142.06,142.05,4.05306059]
[1749782347365,12.32770642,142.06,141.99,2.3117]
[1749782347560,12.32770642,142.05,141.95,2.4056]
[1749782347863,207.4,142.07,141.95,2.4056]
[1749782347864,219.72770642,142.07,141.95,19.30230642]
[1749782348165,219.72770642,142.07,141.99,7.0379]
[1749782348359,219.72770642,142.07,141.95,19.30230642]
[1749782348360,0.0536272,142.02,142.0,0.05262654]
[1749782348865,49.14,142.07,142.0,0.05262654]
[1749782349254,61.46770642,142.07,142.0,0.05262654]
[1749782349561,12.32770642,142.01,142.0,4.05262654]
[1749782349754,227.32770642,142.01,141.92,7.041]
[1749782349954,215.0,142.01,141.87,12.32770642]
[1749782350156,215.0,142.01,141.88,12.32770642]
[1749782350157,12.32770642,141.99,141.88,12.32770642]
[1749782350369,12.32770642,142.0,141.88,12.32770642]
[1749782350752,0.04557987,141.95,141.93,0.04471456]
[1749782350963,0.04828277,141.95,141.93,0.05109545]
[1749782351461,0.04828277,141.95,141.94,7.0404]
[1749782351760,0.04828277,141.95,141.94,11.0404]
[1749782352855,215.0,142.01,141.94,4.0]
[1749782353455,222.0371,142.01,141.94,4.0]
[1749782353658,51.26,142.01,141.95,12.32770642]
[1749782353851,51.26,142.01,141.97,0.04807857]
[1749782353852,0.04523536,141.99,141.97,0.04807857]
[1749782354062,51.26,142.01,141.97,0.04807857]
[1749782354365,51.28,142.05,141.97,0.04807857]
[1749782354560,58.315,142.05,142.0,7.037]
[1749782354960,0.05257111,142.04,142.01,0.04650324]
[1749782356260,7.08817111,142.04,142.01,0.04650324]
[1749782356664,7.036,142.03,142.01,0.04650324]
[1749782356964,12.32770642,142.03,142.01,0.04650324]
[1749782357365,7.0364,142.02,142.01,0.04650324]
[1749782358060,7.0379,142.0,141.95,2.3958]
[1749782358361,7.0379,142.0,141.94,4.0]
[1749782358362,12.32770642,141.99,141.94,4.0]
[1749782358965,7.0393,141.97,141.94,4.0]
[1749782359159,0.04524354,141.97,141.94,4.04856262]
[1749782359472,12.37294996,141.97,141.94,4.04856262]
[1749782360263,7.0399,141.95,141.94,4.04856262]
[1749782360464,58.3399,141.95,141.94,4.04856262]
[1749782360863,70.66760642,141.95,141.94,3.87756262]
[1749782361059,63.62770642,141.95,141.83,19.37510642]
[1749782361259,51.3,141.95,141.85,12.32770642]
[1749782361864,12.32770642,141.93,141.83,7.0474]
[1749782362064,63.62770642,141.95,141.87,0.05283001]
[1749782362368,0.04974699,141.92,141.9,0.04896611]
[1749782363161,0.04974699,141.92,141.9,4.04896611]
[1749782364766,0.04974699,141.92,141.91,7.0419]
[1749782365267,7.0419,141.91,141.9,4.04896611]
[1749782365461,424.86960642,141.91,141.9,6.611e-05]
[1749782366163,424.86770642,141.91,141.79,2.3748]
[1749782366367,0.05262758,141.86,141.84,0.0501576]
[1749782366559,65.96770642,141.85,141.84,0.0501576]
[1749782366964,73.00770642,141.85,141.73,2.3782]
[1749782367163,12.32770642,141.81,141.73,2.3782]
[1749782367467,12.32770642,141.79,141.73,2.3782]
[1749782367666,53.66,141.78,141.73,2.3782]
[1749782367870,7.0492,141.77,141.73,6.3782]
[1749782368073,0.04508277,141.76,141.74,0.05045586]
[1749782369664,14.0825,141.93,141.74,0.05045586]
[1749782369665,12.32770642,141.85,141.74,12.37816228]
[1749782369965,12.32770642,141.86,141.75,2.3412]
[1749782370269,12.32770642,141.81,141.75,2.3412]
[1749782370463,55.52,141.81,141.75,2.3412]
[1749782370665,0.04555784,141.79,141.77,0.05389344]
[1749782373972,55.52,141.81,141.79,7.0474]
[1749782374163,55.52,141.81,141.77,0.05389344]
[1749782374868,55.52,141.85,141.77,12.38159986]
[1749782375061,55.52,141.85,141.79,12.32770642]
[1749782375266,461.16,141.91,141.79,55.52]
[1749782375465,461.16,141.91,141.88,7.0429]
[1749782375670,461.16,141.91,141.82,12.32770642]
[1749782375972,0.04534648,141.88,141.86,7.0439]
[1749782376169,0.04534648,141.88,141.85,0.04510423]
[1749782376872,12.32770642,141.86,141.7,418.20770642]
[1749782377065,12.32770642,141.81,141.71,4.8038]
[1749782377269,57.46,141.8,141.71,4.8038]
[1749782377774,0.05024455,141.78,141.75,0.05204373]
[1749782378771,7.0493,141.77,141.75,0.05204373]
[1749782379370,7.09864455,141.78,141.75,0.05204373]
[1749782379677,57.48,141.84,141.75,0.05204373]
[1749782379968,57.48,141.84,141.77,7.0485]
[1749782380162,57.48,141.84,141.73,4.0]
[1749782380364,12.32770642,141.81,141.73,4.0]
[1749782380768,0.05411477,141.78,141.76,0.04812752]
[1749782381578,0.05411477,141.78,141.76,4.04812752]
[1749782384370,183.24,141.77,141.55,64.56]
[1749782384576,12.32770642,141.69,141.58,2.2856]
[1749782384873,7.0539,141.67,141.58,2.2856]
[1749782385071,64.56,141.69,141.58,2.2856]
[1749782385374,0.05394442,141.65,141.62,0.0469289]
[1749782386170,66.74,141.73,141.63,12.32770642]
[1749782386376,66.74,141.75,141.62,2.4279]
[1749782386674,66.74,141.75,141.63,16.32770642]
[1749782386872,66.74,141.75,141.64,12.32770642]
[1749782387073,0.04631573,141.71,141.68,0.04669138]
[1749782389872,66.74,141.75,141.68,0.04669138]
[1749782390075,7.0505,141.74,141.68,7.09959138]
[1749782390274,66.74,141.75,141.68,0.04669138]
[1749782390573,73.7899,141.75,141.7,7.0523]
[1749782390772,0.04726868,141.74,141.71,0.05338774]
[1749782393580,405.98,141.8,141.71,0.05338774]
[1749782393771,7.0479,141.79,141.74,7.0499]
[1749782393971,12.32770642,141.79,141.69,2.2043]
[1749782394173,12.32770642,141.77,141.69,2.2043]
[1749782394581,0.04498861,141.74,141.72,0.04816127]
[1749782394780,12.32770642,141.73,141.67,2.2332]
[1749782395375,7.0529,141.69,141.64,4.5836]
[1749782395689,0.05002788,141.68,141.65,0.05136226]
[1749782397082,68.78,141.75,141.66,12.32770642]
[1749782397283,12.32770642,141.77,141.66,12.32770642]
[1749782397478,406.0761,141.8,141.66,12.32770642]
[1749782397683,7.051,141.73,141.66,12.32770642]
[1749782397888,12.32770642,141.75,141.65,12.32770642]
[1749782398084,0.04669875,141.71,141.69,0.05394412]
[1749782399180,7.0523,141.7,141.69,4.05394412]
[1749782399788,7.0523,141.7,141.69,4.412e-05]
[1749782399789,19.38000642,141.7,141.69,4.412e-05]
[1749782400078,7.0523,141.7,141.69,4.412e-05]
[1749782400492,19.38000642,141.7,141.69,4.412e-05]
[1749782400981,19.38000642,141.7,141.54,12.32770642]
[1749782400982,31.71541284,141.7,141.54,12.32770642]
[1749782401188,12.32770642,141.65,141.57,2.1899]
[1749782401988,0.04874976,141.62,141.6,0.05185014]
[1749782402586,12.32770642,141.67,141.6,4.05185014]
[1749782402786,68.78,141.69,141.6,4.0]
[1749782402995,12.32770642,141.74,141.63,12.32770642]
[1749782403184,12.32770642,141.74,141.64,2.4214]
[1749782403387,68.78,141.75,141.65,12.32770642]
[1749782403680,0.05236502,141.71,141.69,7.1055432]
[1749782403884,0.05236502,141.71,141.69,0.0530432]
[1749782404392,12.32770642,141.7,141.69,0.0530432]
[1749782404593,19.38000642,141.7,141.69,0.0530432]
[1749782404889,12.32770642,141.7,141.69,0.0530432]
[1749782405092,225.75651969,141.7,141.6,4.0]
[1749782405394,12.32770642,141.63,141.6,4.0]
[1749782405996,12.37914746,141.63,141.6,4.04806917]
[1749782406186,7.0568,141.61,141.6,4.04806917]
[1749782406385,12.32770642,141.61,141.6,4.04806917]
[1749782406886,19.38450642,141.61,141.6,4.04806917]
[1749782407288,68.85144104,141.63,141.6,4.04806917]
[1749782407588,0.05144104,141.63,141.6,4.04806917]
[1749782407792,0.05144104,141.63,141.61,7.0564]
[1749782407995,0.05144104,141.63,141.6,4.04806917]
[1749782408389,68.8,141.68,141.6,4.04806917]
[1749782408691,68.8,141.68,141.61,4.6301]
[1749782409392,12.32770642,141.66,141.61,4.6301]
[1749782409593,12.37239692,141.66,141.63,0.04501262]
[1749782410096,12.37239692,141.66,141.63,7.10051262]
[1749782410287,12.37239692,141.66,141.63,0.04501262]
[1749782410493,7.0552,141.65,141.63,0.04501262]
[1749782410690,12.32770642,141.64,141.63,0.04501262]
[1749782411385,19.38300642,141.64,141.63,0.04501262]
[1749782411588,12.32770642,141.65,141.63,0.04501262]
[1749782411986,19.38280642,141.65,141.63,0.04501262]
[1749782412195,12.32770642,141.65,141.63,0.04501262]
[1749782412399,7.0553,141.64,141.63,0.04501262]
[1749782412893,7.0568,141.61,141.6,4.0]
[1749782413095,75.8768,141.61,141.6,4.0]
[1749782414589,81.37057004,141.61,141.38,14.136]
[1749782414787,12.32770642,141.53,141.47,2.3102]
[1749782414994,19.38610642,141.58,141.54,7.0602]
[1749782415197,68.82,141.6,141.47,14.63790642]
[1749782415397,81.14770642,141.6,141.47,14.63790642]
[1749782415598,12.32770642,141.54,141.52,0.05162855]
[1749782416602,7.0608,141.53,141.52,0.05162855]
[1749782416790,12.32770642,141.54,141.52,4.05162855]
[1749782417197,7.0608,141.53,141.52,4.05162855]
[1749782417397,19.38850642,141.53,141.52,4.05162855]
[1749782418998,12.32770642,141.53,141.52,4.05162855]
[1749782419702,19.38850642,141.53,141.52,4.05162855]
[1749782420501,19.38850642,141.53,141.44,2.2197]
[1749782420502,12.32770642,141.53,141.45,2.4034]
[1749782420699,255.64,141.54,141.45,2.4034]
[1749782420901,7.0609,141.53,141.49,7.0624]
[1749782421093,68.82,141.54,141.45,2.4034]
[1749782421296,198.34770642,141.55,141.45,2.4034]
[1749782421297,12.32770642,141.55,141.45,2.4034]
[1749782421597,12.32770642,141.6,141.45,2.4034]
[1749782421598,1.411e-05,141.51,141.5,19.39000642]
[1749782421799,418.80770642,141.61,141.5,12.32770642]
[1749782421997,418.80770642,141.61,141.45,477.1034]
[1749782422298,418.80770642,141.61,141.5,4.0]
[1749782422500,0.04852741,141.57,141.54,0.05060069]
[1749782423003,0.04852741,141.57,141.55,7.0595]
[1749782423204,0.04852741,141.57,141.54,0.05060069]
[1749782423504,0.04852741,141.57,141.56,7.0593]